Workbook

Sheet IN Data
D1: CD_QD_TD | E1: CP_QN_TX | F1: CP_QX_TN | G1: CR_QN_TX | H1: CR_QX_TN
A2: Feed | B2: Vap Frac | D2: 0.2245569271 | E2: 0.2387680879 | F2: 0.2607929528 | G2: 0.1347048955 | H2: 0.1390332166
B3: Temp | C3: °C | D3: -178.8982257 | E3: -180.8193454 | F3: -180.0118011 | G3: -173.8861286 | H3: -173.9609481
B4: Press | C4: barA | D4: 1.23 | E4: 1.23 | F4: 1.23 | G4: 1.23 | H4: 1.23
B5: mol Flow | C5: Nm3/h | D5: 768.864052 | E5: 504.787791 | F5: 921.0695174 | G5: 385.2538684 | H5: 761.6938796
B7: Compo | C7: CH4 | D7: 0.7009489784 | E7: 0.6629751961 | F7: 0.6515828258 | G7: 0.8311886991 | H7: 0.8229718458
C8: CO2 | D8: 0 | E8: 0 | F8: 0 | G8: 0 | H8: 0
C9: N2 | D9: 0.2821844367 | E9: 0.3210334836 | F9: 0.3201191107 | G9: 0.1635067118 | H9: 0.1642533294
C10: O2 | D10: 0.0151302751 | E10: 0.01456337269 | F10: 0.02621340021 | G10: 0.005304589143 | H10: 0.01277482484
C11: Ar | D11: 0.001736309766 | E11: 0.001427947685 | F11: 0.002084663369 | G11: 0 | H11: 0
A13: From Condenser | B13: Vap Frac | D13: =(D16-16.5335144275013)/D16 -> 0.8618177643 | E13: =(E16-16.1906039903492)/E16 -> 0.8088368449 | F13: =(F16-16.5075163195236)/F16 -> 0.8906043445 | G13: =(G16-16.9121496594592)/G16 -> 0.7042703819 | H13: =(H16-17.1474678468341)/H16 -> 0.8565930914
B14: Temp | C14: °C | D14: -171.2285007 | E14: -174.0017586 | F14: -172.4953871 | G14: -166.2049841 | H14: -166.0308115
B15: Press | C15: barA | D15: 1.225 | E15: 1.225 | F15: 1.225 | G15: 1.225 | H15: 1.225
B16: mol Flow | C16: Nm3/h | D16: 119.6500718 | E16: 84.69521222 | F16: 150.8973665 | G16: 57.18787915 | H16: 119.5721183
B18: Compo | C18: CH4 | D18: 0.3191955055 | E18: 0.2341029254 | F18: 0.2743888518 | G18: 0.5346000647 | H18: 0.5405095777
C19: CO2 | D19: 0 | E19: 0 | F19: 0 | G19: 0 | H19: 0
C20: N2 | D20: 0.6032389856 | E20: 0.6879800715 | F20: 0.6060205388 | G20: 0.4368546018 | H20: 0.3993941939
C21: O2 | D21: 0.07054392133 | E21: 0.07195243711 | F21: 0.1119371235 | G21: 0.02854533355 | H21: 0.06009622831
C22: Ar | D22: 0.007021587543 | E22: 0.005964565995 | F22: 0.007653485874 | G22: 0 | H22: 0
A24: To Reboiler | B24: Vap Frac | D24: 0 | E24: 0 | F24: 0 | G24: 0 | H24: 0
B25: Temp | C25: °C | D25: -158.8100409 | E25: -158.8102368 | F25: -158.8104373 | G25: -158.8090554 | H25: -158.8095142
B26: Press | C26: barA | D26: 1.25 | E26: 1.25 | F26: 1.25 | G26: 1.25 | H26: 1.25
B27: mol Flow | C27: Nm3/h | D27: 647.0019005 | E27: 419.2685276 | F27: 734.5135862 | G27: 365.3165703 | H27: 707.3901742
B29: Compo | C29: CH4 | D29: 0.9998789876 | E29: 0.9998764208 | F29: 0.9998738069 | G29: 0.9998914843 | H29: 0.9998855664
C30: CO2 | D30: 0 | E30: 0 | F30: 0 | G30: 0 | H30: 0
C31: N2 | D31: 8.719218422e-10 | E31: 8.75494304e-10 | F31: 5.081089576e-10 | G31: 2.090984144e-09 | H31: 8.292435886e-10
C32: O2 | D32: 0.0001203714119 | E32: 0.0001230615053 | F32: 0.00012575988 | G32: 0.0001085136379 | H32: 0.0001144327497
C33: Ar | D33: 6.401220645e-07 | E33: 5.1680888e-07 | F33: 4.326919523e-07 | G33: 0 | H33: 0
A36: D-601 Feed | B36: Vap Frac | D36: =(D2*D5+D13*D16)/D38 -> 0.3103724509 | E36: =(E2*E5+E13*E16)/E38 -> 0.3206739174 | F36: =(F2*F5+F13*F16)/F38 -> 0.349449498 | G36: =(G2*G5+G13*G16)/G38 -> 0.2083241739 | H36: =(H2*H5+H13*H16)/H38 -> 0.2363933263
B37: Press | C37: barA | D37: =D4 -> 1.23 | E37: =E4 -> 1.23 | F37: =F4 -> 1.23 | G37: =G4 -> 1.23 | H37: =H4 -> 1.23
B38: mol Flow | C38: Nm3/h | D38: =D16+D5 -> 888.5141238 | E38: =E16+E5 -> 589.4830032 | F38: =F16+F5 -> 1071.966884 | G38: =G16+G5 -> 442.4417476 | H38: =H16+H5 -> 881.2659979
B40: Compo | C40: CH4 | D40: =(D$5*D7+D$16*D18)/D$38 -> 0.64954087 | E40: 0.6013560692 | F40: 0.5984864305 | G40: 0.7928530875 | H40: 0.784646741
C41: CO2 | D41: 0 | E41: 0 | F41: 0 | G41: 0 | H41: 0
C42: N2 | D42: 0.3254186395 | E42: 0.3737553076 | F42: 0.3603645448 | G42: 0.1988383372 | H42: 0.1961577616
C43: O2 | D43: 0.02259244883 | E43: 0.02280886741 | F43: 0.03828045592 | G43: 0.008308575294 | H43: 0.01919549745
C44: Ar | D44: 0.002448041689 | E44: 0.002079755877 | F44: 0.00286856879 | G44: 0 | H44: 0
A46: D-601 Feed (with pumping) | B46: Vap Frac | D46: =(D2*D5+D13*D16+D24*$K$46*D27)/D48 -> 0.2403614824 | E46: =(E2*E5+E13*E16+E24*$K$46*E27)/E48 -> 0.2496489923 | F46: =(F2*F5+F13*F16+F24*$K$46*F27)/F48 -> 0.2742757957 | G46: =(G2*G5+G13*G16+G24*$K$46*G27)/G48 -> 0.1566025553 | H46: =(H2*H5+H13*H16+H24*$K$46*H27)/H48 -> 0.1789395738 | J46: Pump flow ratio | K46: 0.4
B47: Press | C47: barA | D47: =D4 -> 1.23 | E47: =E4 -> 1.23 | F47: =F4 -> 1.23 | G47: =G4 -> 1.23 | H47: =H4 -> 1.23
B48: mol Flow | C48: Nm3/h | D48: =D5+D16+$K$46*D27 -> 1147.314884 | E48: =E5+E16+$K$46*E27 -> 757.1904142 | F48: =F5+F16+$K$46*F27 -> 1365.772318 | G48: =G5+G16+$K$46*G27 -> 588.5683757 | H48: =H5+H16+$K$46*H27 -> 1164.222068
B50: Compo | C50: CH4 | D50: =(D$5*D7+D$16*D18+$K$46*D$27*D29)/D$48 -> 0.7285669267 | E50: 0.689622924 | F50: 0.6848330279 | G50: 0.8442554802 | H50: 0.8369590393
C51: CO2 | D51: 0 | E51: 0 | F51: 0 | G51: 0 | H51: 0
C52: N2 | D52: 0.2520136901 | E52: 0.2909735744 | F52: 0.2828427938 | G52: 0.1494718122 | H52: 0.1484829832
C53: O2 | D53: 0.01752340388 | E53: 0.01778426897 | F53: 0.03007260392 | G53: 0.006272707569 | H53: 0.01455797749
C54: Ar | D54: 0.001895979308 | E54: 0.001619232613 | F54: 0.002251574316 | G54: 0 | H54: 0
D58: 153.8922243 | E58: 102.8776548 | F58: 187.9860237 | G58: 72.10193997 | H58: 154.0303286
A59: Thermosyphon feed | B59: Vap Frac | D59: =D58/D61 -> 0.06577106923 | E59: =E58/E61 -> 0.06633319171 | F59: =F58/F61 -> 0.06708132929 | G59: =G58/G61 -> 0.0622406599 | H59: =H58/H61 -> 0.06413324018 | J59: Circulation ratio | K59: 11
B60: Press | C60: barA | D60: =D26 -> 1.25 | E60: =E26 -> 1.25 | F60: =F26 -> 1.25 | G60: =G26 -> 1.25 | H60: =H26 -> 1.25
B61: mol Flow | C61: Nm3/h | D61: =D58*$K$59+D27 -> 2339.816368 | E61: =E58*$K$59+E27 -> 1550.92273 | F61: =F58*$K$59+F27 -> 2802.359846 | G61: =G58*$K$59+G27 -> 1158.43791 | H61: =H58*$K$59+H27 -> 2401.723789
B63: Compo | C63: CH4 | D63: =D29 -> 0.9998789876 | E63: =E29 -> 0.9998764208 | F63: =F29 -> 0.9998738069 | G63: =G29 -> 0.9998914843 | H63: =H29 -> 0.9998855664
C64: CO2 | D64: =D30 -> 0 | E64: 0 | F64: 0 | G64: 0 | H64: 0
C65: N2 | D65: 8.719218422e-10 | E65: 8.75494304e-10 | F65: 5.081089576e-10 | G65: 2.090984144e-09 | H65: 8.292435886e-10
C66: O2 | D66: 0.0001203714119 | E66: 0.0001230615053 | F66: 0.00012575988 | G66: 0.0001085136379 | H66: 0.0001144327497
C67: Ar | D67: 6.401220645e-07 | E67: 5.1680888e-07 | F67: 4.326919523e-07 | G67: 0 | H67: 0

Sheet Feed Sep D601 without pumping
A1: Calculation according "Phase Separators" E&C Process Design Rule A0024(b) (2004)
A2: Flow | B2: =INDEX('IN Data'!D38:H38,1,MATCH(_case,_cases,0)) -> 1071.966884 | C2: Nm3/h | G2: Composition | H2: methane | I2: =1-SUM(I3:I7) -> 0.5984864305 | L2: =CONCATENATE('Feed Sep D601 without pumping'!H2,";",TEXT('Feed Sep D601 without pumping'!I2,"0.000000")) -> methane;0.598486 | M2: =L2 -> methane;0.598486
A3: Vapour fraction (mol) | B3: =INDEX('IN Data'!D36:H36,1,MATCH(_case,_cases,0)) -> 0.349449498 | H3: nitrogen | I3: =INDEX('IN Data'!D42:H42,1,MATCH(_case,_cases,0)) -> 0.3603645448 | L3: =CONCATENATE('Feed Sep D601 without pumping'!H3,";",TEXT('Feed Sep D601 without pumping'!I3,"0.000000")) -> nitrogen;0.360365 | M3: =IF(LEFT(L3)=";",M2,M2&";"&L3) -> methane;0.598486;nitrogen;0.360365
A4: Pressure | B4: =INDEX('IN Data'!D37:H37,1,MATCH(_case,_cases,0)) -> 1.23 | C4: barA | D4: =B4/10 -> 0.123 | E4: MPa | H4: oxygen | I4: =INDEX('IN Data'!D43:H43,1,MATCH(_case,_cases,0)) -> 0.03828045592 | L4: =CONCATENATE('Feed Sep D601 without pumping'!H4,";",TEXT('Feed Sep D601 without pumping'!I4,"0.000000")) -> oxygen;0.038280 | M4: =IF(LEFT(L4)=";",M3,M3&";"&L4) -> methane;0.598486;nitrogen;0.360365;oxygen;0.038280
H5: argon | I5: =INDEX('IN Data'!D44:H44,1,MATCH(_case,_cases,0)) -> 0.00286856879 | L5: =CONCATENATE('Feed Sep D601 without pumping'!H5,";",TEXT('Feed Sep D601 without pumping'!I5,"0.000000")) -> argon;0.002869 | M5: =IF(LEFT(L5)=";",M4,M4&";"&L5) -> methane;0.598486;nitrogen;0.360365;oxygen;0.038280;argon;0.002869
A6: Entrainement factor | B6: 1.25 | L6: =CONCATENATE('Feed Sep D601 without pumping'!H6,";",TEXT('Feed Sep D601 without pumping'!I6,"0.000000")) -> ;0.000000 | M6: =IF(LEFT(L6)=";",M5,M5&";"&L6) -> methane;0.598486;nitrogen;0.360365;oxygen;0.038280;argon;0.002869
L7: =CONCATENATE('Feed Sep D601 without pumping'!H7,";",TEXT('Feed Sep D601 without pumping'!I7,"0.000000")) -> ;0.000000 | M7: =IF(LEFT(L7)=";",M6,M6&";"&L7) -> methane;0.598486;nitrogen;0.360365;oxygen;0.038280;argon;0.002869
A8: Vessel diameter | B8: 400 | C8: mm
A9: Vessel height | B9: 1550 | C9: mm | G9: Case | H9: CP_QX_TN
A10: Vessel cross section | B10: =PI()/4*(_d/1000)^2 -> 0.1256637061 | C10: m²
A12: Temperature | B12: =[2]!Temperature(_RP_mix,"PQ","SI",_p,_y) -> 90.37168793 | C12: K
A13: Molar weight | B13: =[2]!MolarMass(_RP_mix,"PQ","SI",_p,_y) -> 21.0359938 | C13: g/mol | D13: =B13/1000*44.61531 -> 0.9385273844 | E13: kg/Nm3
B15: Total | C15: Liquid | D15: Vapor
A16: Density | B16: =[2]!Density(_RP_mix,"PQ","SI",_p,_y) -> 13.06251882 | C16: =[2]!LiquidDensity(_RP_mix,"PQ","SI",_p,_y) -> 527.9916194 | D16: =[2]!VaporDensity(_RP_mix,"PQ","SI",_p,_y) -> 4.639359391 | E16: kg/m3
A17: Mass flow | B17: =_Qmol*_MW/3600 -> 0.2794639655 | C17: =(1-_y)*_Qmol*_MW/3600 -> 0.1818054231 | D17: =_y*_Qmol*_MW/3600 -> 0.09765854244 | E17: kg/s
A18: Volume Flow | B18: =_m/_rho -> 0.02139433974 | C18: =_mL/_rhoL -> 0.0003443339181 | D18: =_mV/_rhoV -> 0.02105000588 | E18: m3/s
A19: Viscosity | C19: =[2]!Viscosity(_RP_mix,"PLiq","SI",_p)/1000000 -> 0.0001763534359 | D19: =[2]!Viscosity(_RP_mix,"PVap","SI",_p)/1000000 -> 6.291350993e-06 | E19: Pa.s
A20: Surface tension | C20: =[2]!SurfaceTension(_RP_mix,"PLiq","SI",_p)/1000 -> 0.01677413927 | E20: N/m
E22: min Vessel diam
A23: Critical vapor velocity | B23: =0.048*SQRT((_rhoL-_rhoV)/_rhoV)*_alpha -> 0.6372638662 | C23: m/s | D23: à | E23: =SQRT(4*_VV/(PI()*_vc))*1000 -> 205.0791568 | F23: mm
A24: Max liquid velocity | B24: =0.1*(_sigma/_rhoL)^0.25 -> 0.007507637654 | C24: m/s | D24: à | E24: =SQRT(4*_VL/(PI()*_vLiq))*1000 -> 241.6536224 | F24: mm
A27: Retention time | B27: 5 | C27: min | D27: =B27*60 -> 300 | E27: sec
A28: Purged liquid volume | B28: =_VL*_t_ret -> 0.1033001754 | C28: m3
A29: Liquid height | B29: =_purgeVol/_Sect -> 0.8220366772 | C29: m | D29: =B29*1000 -> 822.0366772 | E29: mm | G29: =PI()/4*(_d/1000)^2*_H_Liq/1000 -> 0.1033001754 | H29: m3
A31: Total minimum height | B31: with eliminator | C31: =MAX(0.15*_d,300)+150+MAX(0.5*_d,400)+MAX(MIN(0.3*_d,500),200)+_H_Liq+50 -> 1922.036677 | D31: mm
B32: without eliminator | C32: =MAX(_d,300)+MAX(MIN(0.3*_d,500),200)+_H_Liq+50 -> 1472.036677 | D32: mm

Sheet Feed Sep D601 with pumping
A1: Calculation according "Phase Separators" E&C Process Design Rule A0024(b) (2004)
A2: Flow | B2: =INDEX('IN Data'!D48:H48,1,MATCH(_case,_cases,0)) -> 1365.772318 | C2: Nm3/h | G2: Composition | H2: methane | I2: =1-SUM(I3:I7) -> 0.6848330279 | L2: =CONCATENATE('Feed Sep D601 with pumping'!H2,";",TEXT('Feed Sep D601 with pumping'!I2,"0.000000")) -> methane;0.684833 | M2: =L2 -> methane;0.684833
A3: Vapour fraction (mol) | B3: =INDEX('IN Data'!D46:H46,1,MATCH(_case,_cases,0)) -> 0.2742757957 | H3: nitrogen | I3: =INDEX('IN Data'!D52:H52,1,MATCH(_case,_cases,0)) -> 0.2828427938 | L3: =CONCATENATE('Feed Sep D601 with pumping'!H3,";",TEXT('Feed Sep D601 with pumping'!I3,"0.000000")) -> nitrogen;0.282843 | M3: =IF(LEFT(L3)=";",M2,M2&";"&L3) -> methane;0.684833;nitrogen;0.282843
A4: Pressure | B4: =INDEX('IN Data'!D47:H47,1,MATCH(_case,_cases,0)) -> 1.23 | C4: barA | D4: =B4/10 -> 0.123 | E4: MPa | H4: oxygen | I4: =INDEX('IN Data'!D53:H53,1,MATCH(_case,_cases,0)) -> 0.03007260392 | L4: =CONCATENATE('Feed Sep D601 with pumping'!H4,";",TEXT('Feed Sep D601 with pumping'!I4,"0.000000")) -> oxygen;0.030073 | M4: =IF(LEFT(L4)=";",M3,M3&";"&L4) -> methane;0.684833;nitrogen;0.282843;oxygen;0.030073
H5: argon | I5: =INDEX('IN Data'!D54:H54,1,MATCH(_case,_cases,0)) -> 0.002251574316 | L5: =CONCATENATE('Feed Sep D601 with pumping'!H5,";",TEXT('Feed Sep D601 with pumping'!I5,"0.000000")) -> argon;0.002252 | M5: =IF(LEFT(L5)=";",M4,M4&";"&L5) -> methane;0.684833;nitrogen;0.282843;oxygen;0.030073;argon;0.002252
A6: Entrainement factor | B6: 1.25 | L6: =CONCATENATE('Feed Sep D601 with pumping'!H6,";",TEXT('Feed Sep D601 with pumping'!I6,"0.000000")) -> ;0.000000 | M6: =IF(LEFT(L6)=";",M5,M5&";"&L6) -> methane;0.684833;nitrogen;0.282843;oxygen;0.030073;argon;0.002252
L7: =CONCATENATE('Feed Sep D601 with pumping'!H7,";",TEXT('Feed Sep D601 with pumping'!I7,"0.000000")) -> ;0.000000 | M7: =IF(LEFT(L7)=";",M6,M6&";"&L7) -> methane;0.684833;nitrogen;0.282843;oxygen;0.030073;argon;0.002252
A8: Vessel diameter | B8: 400 | C8: mm
A9: Vessel height | B9: 1900 | C9: mm | G9: Case | H9: CP_QX_TN
A10: Vessel cross section | B10: =PI()/4*(_d/1000)^2 -> 0.1256637061 | C10: m²
A12: Temperature | B12: =[2]!Temperature(_RP_mix,"PQ","SI",_p,_y) -> 92.23426 | C12: K
A13: Molar weight | B13: =[2]!MolarMass(_RP_mix,"PQ","SI",_p,_y) -> 19.96229842 | C13: g/mol | D13: =B13/1000*44.61531 -> 0.8906241324 | E13: kg/Nm3
B15: Total | C15: Liquid | D15: Vapor
A16: Density | B16: =[2]!Density(_RP_mix,"PQ","SI",_p,_y) -> 15.99100829 | C16: =[2]!LiquidDensity(_RP_mix,"PQ","SI",_p,_y) -> 509.0101074 | D16: =[2]!VaporDensity(_RP_mix,"PQ","SI",_p,_y) -> 4.488275968 | E16: kg/m3
A17: Mass flow | B17: =_Qmol*_MW/3600 -> 0.3378860517 | C17: =(1-_y)*_Qmol*_MW/3600 -> 0.245212086 | D17: =_y*_Qmol*_MW/3600 -> 0.09267396571 | E17: kg/s
A18: Volume Flow | B18: =_m/_rho -> 0.02112975277 | C18: =_mL/_rhoL -> 0.0004817430586 | D18: =_mV/_rhoV -> 0.0206480097 | E18: m3/s
A19: Viscosity | C19: =[2]!Viscosity(_RP_mix,"PLiq","SI",_p)/1000000 -> 0.0001766990755 | D19: =[2]!Viscosity(_RP_mix,"PVap","SI",_p)/1000000 -> 6.035877924e-06 | E19: Pa.s
A20: Surface tension | C20: =[2]!SurfaceTension(_RP_mix,"PLiq","SI",_p)/1000 -> 0.01713752317 | E20: N/m
E22: min Vessel diam
A23: Critical vapor velocity | B23: =0.048*SQRT((_rhoL-_rhoV)/_rhoV)*_alpha -> 0.6361381712 | C23: m/s | D23: à | E23: =SQRT(4*_VV/(PI()*_vc))*1000 -> 203.2911296 | F23: mm
A24: Max liquid velocity | B24: =0.1*(_sigma/_rhoL)^0.25 -> 0.007617376332 | C24: m/s | D24: à | E24: =SQRT(4*_VL/(PI()*_vLiq))*1000 -> 283.7658221 | F24: mm
A27: Retention time | B27: 5 | C27: min | D27: =B27*60 -> 300 | E27: sec
A28: Purged liquid volume | B28: =_VL*_t_ret -> 0.1445229176 | C28: m3
A29: Liquid height | B29: =_purgeVol/_Sect -> 1.150076836 | C29: m | D29: =B29*1000 -> 1150.076836 | E29: mm | G29: =PI()/4*(_d/1000)^2*_H_Liq/1000 -> 0.1445229176 | H29: m3
A31: Total minimum height | B31: with eliminator | C31: =MAX(0.15*_d,300)+150+MAX(0.5*_d,400)+MAX(MIN(0.3*_d,500),200)+_H_Liq+50 -> 2250.076836 | D31: mm
B32: without eliminator | C32: =MAX(_d,300)+MAX(MIN(0.3*_d,500),200)+_H_Liq+50 -> 1800.076836 | D32: mm

Sheet Thermosyphon Sep D602
A1: Calculation according "Phase Separators" E&C Process Design Rule A0024(b) (2004)
A2: Flow | B2: =INDEX('IN Data'!D61:H61,1,MATCH(_case,_cases,0)) -> 2802.359846 | C2: Nm3/h | G2: Composition | H2: methane | I2: =1-SUM(I3:I7) -> 0.9998738069 | L2: =CONCATENATE('Thermosyphon Sep D602'!H2,";",TEXT('Thermosyphon Sep D602'!I2,"0.000000")) -> methane;0.999874 | M2: =L2 -> methane;0.999874
A3: Vapour fraction (mol) | B3: =INDEX('IN Data'!D59:H59,1,MATCH(_case,_cases,0)) -> 0.06708132929 | H3: nitrogen | I3: =INDEX('IN Data'!D65:H65,1,MATCH(_case,_cases,0)) -> 5.081089576e-10 | L3: =CONCATENATE('Thermosyphon Sep D602'!H3,";",TEXT('Thermosyphon Sep D602'!I3,"0.000000")) -> nitrogen;0.000000 | M3: =IF(LEFT(L3)=";",M2,M2&";"&L3) -> methane;0.999874;nitrogen;0.000000
A4: Pressure | B4: =INDEX('IN Data'!D60:H60,1,MATCH(_case,_cases,0)) -> 1.25 | C4: barA | D4: =B4/10 -> 0.125 | E4: MPa | H4: oxygen | I4: =INDEX('IN Data'!D66:H66,1,MATCH(_case,_cases,0)) -> 0.00012575988 | L4: =CONCATENATE('Thermosyphon Sep D602'!H4,";",TEXT('Thermosyphon Sep D602'!I4,"0.000000")) -> oxygen;0.000126 | M4: =IF(LEFT(L4)=";",M3,M3&";"&L4) -> methane;0.999874;nitrogen;0.000000;oxygen;0.000126
H5: argon | I5: =INDEX('IN Data'!D67:H67,1,MATCH(_case,_cases,0)) -> 4.326919523e-07 | L5: =CONCATENATE('Thermosyphon Sep D602'!H5,";",TEXT('Thermosyphon Sep D602'!I5,"0.000000")) -> argon;0.000000 | M5: =IF(LEFT(L5)=";",M4,M4&";"&L5) -> methane;0.999874;nitrogen;0.000000;oxygen;0.000126;argon;0.000000
A6: Entrainement factor | B6: 1.25 | L6: =CONCATENATE('Thermosyphon Sep D602'!H6,";",TEXT('Thermosyphon Sep D602'!I6,"0.000000")) -> ;0.000000 | M6: =IF(LEFT(L6)=";",M5,M5&";"&L6) -> methane;0.999874;nitrogen;0.000000;oxygen;0.000126;argon;0.000000
L7: =CONCATENATE('Thermosyphon Sep D602'!H7,";",TEXT('Thermosyphon Sep D602'!I7,"0.000000")) -> ;0.000000 | M7: =IF(LEFT(L7)=";",M6,M6&";"&L7) -> methane;0.999874;nitrogen;0.000000;oxygen;0.000126;argon;0.000000
A8: Vessel diameter | B8: 470 | C8: mm
A9: Vessel height | B9: 2100 | C9: mm | G9: Case | H9: CP_QX_TN
A10: Vessel cross section | B10: =PI()/4*(_d/1000)^2 -> 0.1734944543 | C10: m²
A12: Temperature | B12: =[2]!Temperature(_RP_mix,"PQ","SI",_p,_y) -> 114.2697408 | C12: K
A13: Molar weight | B13: =[2]!MolarMass(_RP_mix,"PQ","SI",_p,_y) -> 16.04481046 | C13: g/mol | D13: =B13/1000*44.61531 -> 0.7158441924 | E13: kg/Nm3
B15: Total | C15: Liquid | D15: Vapor
A16: Density | B16: =[2]!Density(_RP_mix,"PQ","SI",_p,_y) -> 30.62258052 | C16: =[2]!LiquidDensity(_RP_mix,"PQ","SI",_p,_y) -> 418.5673919 | D16: =[2]!VaporDensity(_RP_mix,"PQ","SI",_p,_y) -> 2.204677262 | E16: kg/m3
A17: Mass flow | B17: =_Qmol*_MW/3600 -> 0.5572369503 | C17: =(1-_y)*_Qmol*_MW/3600 -> 0.5198567549 | D17: =_y*_Qmol*_MW/3600 -> 0.03738019536 | E17: kg/s
A18: Volume Flow | B18: =_m/_rho -> 0.01819692987 | C18: =_mL/_rhoL -> 0.001241990573 | D18: =_mV/_rhoV -> 0.01695495119 | E18: m3/s
A19: Viscosity | C19: =[2]!Viscosity(_RP_mix,"PLiq","SI",_p)/1000000 -> 0.0001107025346 | D19: =[2]!Viscosity(_RP_mix,"PVap","SI",_p)/1000000 -> 4.461002944e-06 | E19: Pa.s
A20: Surface tension | C20: =[2]!SurfaceTension(_RP_mix,"PLiq","SI",_p)/1000 -> 0.01241529806 | E20: N/m
E22: min Vessel diam
A23: Critical vapor velocity | B23: =0.048*SQRT((_rhoL-_rhoV)/_rhoV)*_alpha -> 0.8245455546 | C23: m/s | D23: à | E23: =SQRT(4*_VV/(PI()*_vc))*1000 -> 161.8065149 | F23: mm
A24: Max liquid velocity | B24: =0.1*(_sigma/_rhoL)^0.25 -> 0.007379856881 | C24: m/s | D24: à | E24: =SQRT(4*_VL/(PI()*_vLiq))*1000 -> 462.9032599 | F24: mm
A27: Retention time | B27: 3 | C27: min | D27: =B27*60 -> 180 | E27: sec
A28: Purged liquid volume | B28: =_VL*_t_ret -> 0.2235583031 | C28: m3
A29: Liquid height | B29: =_purgeVol/_Sect -> 1.288561666 | C29: m | D29: =B29*1000 -> 1288.561666 | E29: mm | G29: =PI()/4*(_d/1000)^2*_H_Liq/1000 -> 0.2235583031 | H29: m3
F30: FIVES : Liquid height >760mm for thermosyphon
A31: Total minimum height | B31: with eliminator | C31: =MAX(0.15*_d,300)+150+MAX(0.5*_d,400)+MAX(MIN(0.3*_d,500),200)+_H_Liq+50 -> 2388.561666 | D31: mm
B32: without eliminator | C32: =MAX(_d,300)+MAX(MIN(0.3*_d,500),200)+_H_Liq+50 -> 2008.561666 | D32: mm
A34: The entire liquid inventary is collected in this drum -> needs to be big enough
A35: Available volume | B35: =PI()/4*(_d/1000)^2*_h/1000 -> 0.364338354 | C35: m3
A37: Additional liquid from | B37: Distributor | C37: =10/1000 -> 0.01 | D37: m3 | E37: AL4
B38: AST | C38: =7/1000 -> 0.007 | D38: m3 | E38: AL4
B39: D-601 | C39: ='Feed Sep D601 without pumping'!G29 -> 0.1033001754 | D39: m3
B40: Sum incl safety | C40: =(C39+C38+C37)*(F40+1) -> 0.132330193 | D40: m3 | E40: Safety margin | F40: 0.1
A42: Void volume after column stop | C42: =B35-C40-G29 -> 0.008449857899 | D42: m3

Sheet AUX
A1: 84 | C1: 80 | D1: 0.0849
A2: acetone | C2: 100 | D2: 0.11
A3: ammonia | C3: 125 | D3: 0.1357
A4: argon | C4: 150 | D4: 0.1643
A5: benzene | C5: 200 | D5: 0.2133
A6: butane | C6: 250 | D6: 0.267
A7: butene | C7: 300 | D7: 0.3178
A8: carbon dioxide | C8: 350 | D8: 0.3496
A9: carbon monoxide | C9: 400 | D9: 0.4004
A10: carbonyl sulfide | C10: 450 | D10: 0.4512
A11: cis-butene
A12: cyclohexane
A13: cyclopropane
A14: decane
A15: deuterium
A16: dimethylether
A17: dodecane
A18: ethane
A19: ethanol
A20: ethylene
A21: fluorine
A22: heavy water
A23: helium
A24: heptane
A25: hexane
A26: hydrogen
A27: hydrogen sulfide
A28: isobutane
A29: isobutene
A30: isohexane
A31: isopentane
A32: krypton
A33: methane
A34: methanol
A35: neon
A36: neopentane
A37: nitrogen
A38: nitrogen triflouride
A39: nitrous oxide
A40: nonane
A41: octane
A42: oxygen
A43: parahydrogen
A44: pentane
A45: perfluorobutane
A46: perfluoropentane
A47: propane
A48: propylene
A49: propyne
A50: sulfur dioxide
A51: sulfur hexafluoride
A52: toluene
A53: trans-butene
A54: trifluoroiodomethane
A55: water
A56: xenon
A57: R11
A58: R12
A59: R13
A60: R14
A61: R21
A62: R22
A63: R23
A64: R32
A65: R41
A66: R113
A67: R114
A68: R115
A69: R116
A70: R123
A71: R124
A72: R125
A73: R134a
A74: R141b
A75: R142b
A76: R143a
A77: R152a
A78: R218
A79: R227ea
A80: R236ea
A81: R236fa
A82: R245ca
A83: R245fa
A84: R365mfc
A85: RC318
